bitfinex-derivatives/quotes_SOLF0:USTF0_20250301
["timestamp","ask_amount","ask_price","bid_price","bid_amount"]
[1740796874929,3.5405,148.63,148.49,14.0]
[1740796875136,5.3859,148.6,148.54,5.3875]
[1740796875530,0.04783314,148.58,148.56,0.04570167]
[1740796876235,5.43413314,148.58,148.56,0.04570167]
[1740796876539,0.04783314,148.58,148.56,0.04570167]
[1740796877042,5.3867,148.57,148.56,0.04570167]
[1740796878034,0.04783314,148.58,148.56,0.04570167]
[1740796879842,0.04783314,148.58,148.57,5.3867]
[1740796880236,0.04783314,148.58,148.56,0.04570167]
[1740796880637,5.3867,148.57,148.56,0.04570167]
[1740796880840,0.04783314,148.58,148.56,0.04570167]
[1740796882242,0.04783314,148.58,148.56,5.43250167]
[1740796882441,0.04783314,148.58,148.56,0.04570167]
[1740796882842,0.04783314,148.58,148.57,5.3867]
[1740796883746,0.04783314,148.58,148.56,0.04570167]
[1740796883945,5.3867,148.57,148.56,0.04570167]
[1740796884453,5.43443314,148.58,148.56,0.04570167]
[1740796884844,0.04783314,148.58,148.56,0.04570167]
[1740796886949,5.43413314,148.58,148.56,0.04570167]
[1740796887147,0.04783314,148.58,148.56,0.04570167]
[1740796887661,5.3867,148.57,148.56,0.04570167]
[1740796890756,0.04783314,148.58,148.48,7.1155]
[1740796890951,3.5457,148.59,148.48,7.1155]
[1740796891153,3.5457,148.59,148.5,5.3889]
[1740796891354,5.3878,148.54,148.48,7.1155]
[1740796891558,3.5457,148.59,148.48,7.1155]
[1740796891856,0.04508346,148.55,148.52,0.04709073]
[1740796893070,5.43268346,148.55,148.52,0.04709073]
[1740796893365,0.04508346,148.55,148.52,0.04709073]
[1740796894064,0.04508346,148.55,148.54,5.3878]
[1740796896063,215.46,148.57,148.55,5.3871]
[1740796897068,215.50547926,148.57,148.55,5.3871]
[1740796897262,3.5405,148.63,148.52,0.04709073]
[1740796897468,215.46,148.65,148.49,13.98]
[1740796897655,215.46,148.65,148.5,1.2371817]
[1740796897966,5.385,148.62,148.59,5.3859]
[1740796898361,215.46,148.65,148.54,13.98]
[1740796898562,0.04875983,148.62,148.61,5.3852]
[1740796899064,215.46,148.65,148.62,5.3846]
[1740796900166,215.5078621,148.65,148.62,0.04696426]
[1740796900668,5.3845,148.63,148.62,0.04696426]
[1740796901870,215.5078621,148.65,148.62,0.04696426]
[1740796902472,215.5078621,148.65,148.63,5.3845]
[1740796902969,5.3842,148.64,148.62,0.04696426]
[1740796903761,5.3845,148.63,148.62,0.04696426]
[1740796904369,5.3843,148.64,148.62,0.04696426]
[1740796904571,215.5078621,148.65,148.62,0.04696426]
[1740796905573,215.5078621,148.65,148.63,5.3842]
[1740796906573,0.0478621,148.65,148.63,5.3842]
[1740796908466,0.0478621,148.65,148.62,0.04696426]
[1740796908671,0.0478621,148.65,148.64,5.3841]
[1740796908973,215.4,148.72,148.62,0.04696426]
[1740796909173,215.4,148.72,148.69,5.3823]
[1740796909474,215.4,148.72,148.64,13.96]
[1740796909676,215.4,148.72,148.71,5.3816]
[1740796909877,3.5933,148.77,148.65,7.2962]
[1740796910079,0.05015462,148.73,148.7,0.04805586]
[1740796910768,0.05015462,148.73,148.71,5.3813]
[1740796911175,0.05015462,148.73,148.7,0.04805586]
[1740796911377,0.05015462,148.73,148.72,5.3812]
[1740796911568,215.38,148.79,148.7,0.04805586]
[1740796911772,215.38,148.79,148.69,13.96]
[1740796912475,220.7589,148.79,148.73,5.3806]
[1740796912874,0.04872094,148.77,148.75,0.04592203]
[1740796913278,0.04872094,148.77,148.75,5.42602203]
[1740796913474,0.04872094,148.77,148.75,0.04592203]
[1740796916583,5.3798,148.76,148.75,0.04592203]
[1740796917083,0.04872094,148.77,148.66,3.7965]
[1740796917283,13.96,148.78,148.66,3.7965]
[1740796917484,13.96,148.78,148.69,5.3823]
[1740796917791,13.96,148.78,148.66,3.7965]
[1740796918382,0.04461636,148.73,148.71,0.04486593]
[1740796918586,5.3804,148.75,148.71,0.04486593]
[1740796918780,0.04323662,148.73,148.71,0.04486593]
[1740796920077,0.04323662,148.73,148.72,5.3812]
[1740796920278,0.04323662,148.73,148.71,0.04486593]
[1740796921280,5.3812,148.72,148.71,0.04486593]
[1740796921787,0.04323662,148.73,148.71,0.04486593]
[1740796923084,5.3812,148.72,148.71,0.04486593]
[1740796924290,5.382,148.7,148.65,5.3837]
[1740796924684,13.94,148.73,148.62,7.3461]
[1740796925087,5.382,148.7,148.62,7.3461]
[1740796925289,5.382,148.7,148.65,5.3835]
[1740796925486,0.04983359,148.67,148.65,5.43015546]
[1740796925683,0.04983359,148.67,148.65,0.04665546]
[1740796926282,0.04983359,148.67,148.66,5.3834]
[1740796927093,0.04983359,148.67,148.65,0.04665546]
[1740796927094,13.94,148.73,148.69,5.3821]
[1740796927489,13.94,148.73,148.62,7.3461]
[1740796927690,13.94,148.73,148.66,5.3832]
[1740796927989,13.94,148.73,148.62,7.3461]
[1740796928189,0.0505218,148.71,148.68,0.0424859]
[1740796928989,5.3823,148.69,148.68,0.0424859]
[1740796929898,0.0505218,148.71,148.68,0.0424859]
[1740796930593,5.3823,148.69,148.68,0.0424859]
[1740796930793,0.0505218,148.71,148.55,192.0]
[1740796930998,5.3833,148.67,148.56,20.9497]
[1740796931195,13.94,148.73,148.57,13.94]
[1740796932098,5.3838,148.65,148.64,0.04635813]
[1740796932297,5.3838,148.65,148.57,3.7424]
[1740796932492,0.05097567,148.66,148.63,0.05054526]
[1740796932699,13.94,148.68,148.57,3.7424]
[1740796932899,5.3841,148.64,148.63,0.04835974]
[1740796934197,0.04251745,148.66,148.57,3.7424]
[1740796934387,3.6422,148.67,148.56,7.0097]
[1740796934793,5.386,148.59,148.56,7.0097]
[1740796934990,5.386,148.59,148.56,3.5141]
[1740796935193,3.6422,148.67,148.51,17.7426]
[1740796935394,5.3866,148.58,148.56,0.0496165]
[1740796935596,13.94,148.63,148.51,21.3851]
[1740796935798,0.04524773,148.58,148.56,0.0449793]
[1740796936003,5.3863,148.59,148.56,0.0449793]
[1740796936197,0.04647183,148.58,148.56,0.0449793]
[1740796936500,13.94,148.63,148.56,0.0449793]
[1740796936701,0.04643441,148.58,148.56,0.0449793]
[1740796936896,0.05153768,148.58,148.56,0.0449793]
[1740796937300,0.05153768,148.58,148.56,5.4316793]
[1740796937492,0.05153768,148.58,148.56,0.0449793]
[1740796937698,5.3842,148.64,148.56,0.0449793]
[1740796937897,5.3842,148.64,148.51,7.4451]
[1740796938097,3.5441,148.68,148.52,1.2370079]
[1740796938303,13.94,148.71,148.52,1.2370079]
[1740796938503,73.85985222,148.7,148.52,193.2370079]
[1740796938696,0.04591011,148.62,148.59,0.05158703]
[1740796938897,218.918,148.69,148.56,13.94]
[1740796939210,218.918,148.69,148.59,0.0487438]
[1740796939406,0.04732959,148.64,148.56,13.94]
[1740796939608,0.04732959,148.64,148.63,0.04940806]
[1740796939800,0.04732959,148.64,148.52,13.94]
[1740796940001,13.94,148.65,148.52,3.4455]
[1740796940307,13.94,148.65,148.55,5.3872]
[1740796940509,3.589,148.64,148.52,3.4455]
[1740796940812,3.589,148.64,148.54,5.3877]
[1740796940813,5.3856,148.6,148.54,5.3877]
[1740796940997,0.04239572,148.59,148.57,0.04828851]
[1740796941805,5.3863,148.58,148.46,13.94]
[1740796942003,215.40239572,148.59,148.46,25.0631]
[1740796942004,215.36,148.59,148.46,25.0631]
[1740796942201,215.36,148.59,148.46,11.1231]
[1740796942409,5.387,148.57,148.5,5.389]
[1740796942804,5.3873,148.56,148.5,5.389]
[1740796943013,0.04530013,148.55,148.52,0.04573763]
[1740796943411,5.43280013,148.55,148.52,0.04573763]
[1740796944313,0.04530013,148.55,148.52,0.04573763]
[1740796946707,0.04530013,148.55,148.52,5.43413763]
[1740796947711,0.04530013,148.55,148.52,0.04573763]
[1740796947909,215.44,148.66,148.52,3.40573763]
[1740796948112,215.44,148.66,148.53,7.2033]
[1740796949017,0.04761204,148.61,148.58,0.05083148]
[1740796949318,13.98761204,148.61,148.58,0.05083148]
[1740796949517,5.3856,148.6,148.58,0.05083148]
[1740796949717,13.98761204,148.61,148.58,0.05083148]
[1740796950720,5.3859,148.59,148.58,0.05083148]
[1740796953925,5.3877,148.55,148.49,7.53]
[1740796954222,5.3877,148.55,148.5,5.3891]
[1740796954423,5.3865,148.58,148.49,7.53]
[1740796954723,5.3865,148.58,148.53,5.3881]
[1740796954921,0.04666157,148.55,148.53,5.3881]
[1740796955422,0.04666157,148.55,148.52,5.43767977]
[1740796956114,0.04666157,148.55,148.54,5.3878]
[1740796957616,0.04666157,148.55,148.52,5.43777977]
[1740796958215,0.04666157,148.55,148.54,5.3878]
[1740796958522,0.04666157,148.55,148.52,0.04937977]
[1740796962126,0.04666157,148.55,148.52,5.43777977]
[1740796963022,0.04666157,148.55,148.52,0.04937977]
[1740796963523,0.04666157,148.55,148.53,5.3878]
[1740796964219,0.04666157,148.55,148.52,0.04937977]
[1740796965426,5.43426157,148.55,148.52,0.04937977]
[1740796965622,0.04666157,148.55,148.52,0.04937977]
[1740796966629,0.04666157,148.55,148.52,5.43757977]
[1740796966933,0.04666157,148.55,148.52,0.04937977]
[1740796967130,5.388,148.54,148.52,0.04937977]
[1740796967318,0.04666157,148.55,148.52,0.04937977]
[1740796968625,5.43406157,148.55,148.52,0.04937977]
[1740796968832,0.04666157,148.55,148.52,0.04937977]
[1740796969223,5.43416157,148.55,148.52,0.04937977]
[1740796974033,215.46,148.61,148.52,0.04937977]
[1740796974228,215.46,148.61,148.5,13.92]
[1740796974528,215.46,148.61,148.58,5.3863]
[1740796975327,215.5089535,148.61,148.58,0.05155559]
[1740796975527,5.3856,148.6,148.58,0.05155559]
[1740796977338,215.5089535,148.61,148.58,0.05155559]
[1740796977530,5.3859,148.59,148.58,0.05155559]
[1740796978635,19.3056,148.6,148.58,0.05155559]
[1740796978843,13.92,148.6,148.58,0.05155559]
[1740796979138,215.5089535,148.61,148.58,0.05155559]
[1740796980333,215.5089535,148.61,148.58,5.43755559]
[1740796980741,215.5089535,148.61,148.59,5.3859]
[1740796981036,215.5089535,148.61,148.58,0.05155559]
[1740796981333,220.8941535,148.61,148.58,0.05155559]
[1740796981540,215.5089535,148.61,148.58,0.05155559]
[1740796981931,5.3858,148.6,148.58,0.05155559]
[1740796982235,215.5089535,148.61,148.58,0.05155559]
[1740796982438,215.5089535,148.61,148.59,5.3857]
[1740796982630,215.5089535,148.61,148.58,0.05155559]
[1740796982631,89.42675186,148.66,148.58,0.05155559]
[1740796982832,215.46,148.68,148.58,0.05155559]
[1740796983135,5.3833,148.67,148.63,5.3843]
[1740796983939,0.04497298,148.66,148.64,0.04360721]
[1740796984240,0.04754525,148.66,148.64,0.04860333]
[1740796984739,215.46,148.68,148.64,0.04860333]
[1740796985636,215.46,148.68,148.64,5.43240333]
[1740796985841,0.04331371,148.67,148.64,0.04860333]
[1740796986437,73.85985222,148.73,148.65,13.9]
[1740796986637,73.85985222,148.73,148.66,7.445]
[1740796987540,0.04975784,148.71,148.68,0.04244955]
[1740796988543,0.04975784,148.71,148.7,5.382]
[1740796989642,0.04975784,148.71,148.68,0.04244955]
[1740796989843,83.47203986,148.71,148.63,13.9]
[1740796990032,48.48850224,148.71,148.63,13.9]
[1740796990231,215.4,148.76,148.74,5.3803]
[1740796990433,73.85985222,148.78,148.69,13.9]
[1740796991041,13.9,148.82,148.7,18.8314333]
[1740796991237,0.05144084,148.77,148.75,0.04650987]
[1740796991542,215.34,148.83,148.75,0.04650987]
[1740796991740,0.04794202,148.77,148.75,0.04650987]
[1740796991943,0.04393926,148.8,148.75,0.04650987]
[1740796992441,5.3798,148.76,148.75,0.04650987]
[1740796993439,0.04826457,148.77,148.65,13.9]
[1740796993635,13.88,148.76,148.65,13.9]
[1740796993932,3.4886,148.75,148.65,13.9]
[1740796994135,3.4886,148.75,148.61,13.88]
[1740796994330,5.3818,148.71,148.65,5.3836]
[1740796994731,3.7804,148.74,148.59,3.5234]
[1740796994732,0.04553258,148.69,148.67,0.04566965]
[1740796994938,215.26,148.72,148.6,3.567]
[1740796995145,0.04994558,148.69,148.67,0.04575627]
[1740796995349,0.04994558,148.69,148.68,14.3415012]
[1740796995651,215.26,148.82,148.68,25.3734252]
[1740796995838,3.5867,148.81,148.71,6.62959108]
[1740796996040,5.379,148.79,148.72,25.3734252]
[1740796996239,5.379,148.79,148.73,14.3415012]
[1740796996440,19.2584,148.8,148.74,14.3415012]
[1740796996641,0.05028732,148.78,148.76,0.04526116]
[1740796996840,0.05028732,148.78,148.73,11.023122]
[1740796997143,0.05028732,148.78,148.71,11.022145]
[1740796997345,0.05028732,148.78,148.72,8.81517671]
[1740796997559,0.05028732,148.78,148.73,26.46436408]
[1740796997748,5.3794,148.78,148.74,19.83732171]
[1740796997949,0.04301481,148.77,148.75,19.83732171]
[1740796998143,3.68161481,148.77,148.76,14.10612171]
[1740796998344,7.04161481,148.77,148.76,8.34502171]
[1740796998648,3.68161481,148.77,148.74,0.04531856]
[1740796998846,3.4877,148.76,148.48,27.97453885]
[1740796999044,3.4877,148.76,148.61,17.6976]
[1740796999952,3.4877,148.76,148.7,5.3819]
[1740797000343,0.04251876,148.74,148.72,0.04976989]
[1740797002148,0.04251876,148.74,148.73,5.3809]
[1740797003557,1.876e-05,148.74,148.73,5.3809]
[1740797004546,1.876e-05,148.74,148.73,8.9832]
[1740797007352,1.876e-05,148.74,148.73,5.3809]
[1740797007549,1.876e-05,148.74,148.72,5.43096989]
[1740797007750,1.876e-05,148.74,148.72,0.04976989]
[1740797008252,1.876e-05,148.74,148.73,5.3809]
[1740797008456,1.876e-05,148.74,148.72,0.04976989]
[1740797010956,1.876e-05,148.74,148.72,5.43076989]
[1740797012746,5.38061876,148.74,148.72,0.04976989]
[1740797013359,5.3809,148.73,148.72,0.04976989]
[1740797014057,1.876e-05,148.74,148.72,0.04976989]
[1740797014250,5.38061876,148.74,148.72,0.04976989]
[1740797014656,5.3809,148.73,148.72,0.04976989]
[1740797015858,12.7024,148.73,148.72,0.04976989]
[1740797016453,12.7024,148.73,148.6,7.2691]
[1740797016454,7.3215,148.73,148.6,7.2691]
[1740797016654,5.3826,148.69,148.61,3.619]
[1740797016857,7.3215,148.73,148.64,5.3841]
[1740797017159,5.3823,148.69,148.64,5.3841]
[1740797017658,0.04538477,148.68,148.65,0.04714829]
[1740797018260,0.04538477,148.68,148.65,5.43094829]
[1740797018761,0.04538477,148.68,148.66,5.3832]
[1740797020764,0.04538477,148.68,148.65,0.04714829]
[1740797021160,0.04538477,148.68,148.66,5.3833]
[1740797021764,0.04538477,148.68,148.65,5.43064829]
[1740797022159,0.04538477,148.68,148.65,0.04714829]
[1740797022366,0.04538477,148.68,148.66,5.3833]
[1740797024267,0.04538477,148.68,148.65,0.04714829]
[1740797025671,0.04538477,148.68,148.66,5.3832]
[1740797026572,0.04538477,148.68,148.65,5.43084829]
[1740797027273,0.04538477,148.68,148.66,5.3834]
[1740797027476,0.04538477,148.68,148.65,0.04714829]
[1740797027670,3.7679,148.73,148.69,5.3821]
[1740797028368,5.3807,148.74,148.69,5.3821]
[1740797028771,0.04297449,148.73,148.7,0.04956311]
[1740797028963,5.42387449,148.73,148.7,0.04956311]
[1740797029274,0.04297449,148.73,148.7,0.04956311]
[1740797030375,5.3816,148.71,148.7,0.04956311]
[1740797034177,5.3814,148.72,148.7,0.04956311]
[1740797034471,215.30297449,148.73,148.7,0.04956311]
[1740797034676,74.07755009,148.8,148.7,0.04956311]
[1740797034864,74.07755009,148.8,148.69,7.1346]
[1740797035073,74.07755009,148.8,148.75,5.3799]
[1740797035568,5.3787,148.79,148.69,7.1346]
[1740797035768,0.05017202,148.79,148.76,0.04892069]
[1740797035969,5.3797,148.77,148.69,7.1346]
[1740797036372,0.04421857,148.74,148.72,0.05018655]
[1740797039578,218.8904,148.82,148.72,0.05018655]
[1740797039775,218.8904,148.82,148.69,7.1346]
[1740797040775,0.05058688,148.77,148.74,0.04699351]
[1740797041180,220.6378,148.82,148.78,5.3788]
[1740797041981,220.6378,148.82,148.77,5.3793]
[1740797042186,5.3784,148.8,148.73,13.84]
[1740797042380,0.04851334,148.81,148.78,0.04492269]
[1740797042586,215.26,148.82,148.75,5.3799]
[1740797042775,0.04687055,148.81,148.78,0.04365693]
[1740797044979,0.04687055,148.81,148.78,5.42255693]
[1740797045880,0.04687055,148.81,148.78,0.04365693]
[1740797047385,5.3786,148.8,148.78,0.04365693]
[1740797048377,0.04687055,148.81,148.78,0.04365693]
[1740797049387,5.42497055,148.81,148.78,0.04365693]
[1740797049586,0.04687055,148.81,148.78,0.04365693]
[1740797049888,5.3786,148.8,148.78,0.04365693]
[1740797050387,5.3798,148.76,148.72,5.3811]
[1740797050577,5.3798,148.76,148.7,3.7605]
[1740797051376,5.3798,148.76,148.71,5.3814]
[1740797051582,0.04392368,148.74,148.72,0.045733]
[1740797051787,5.3796,148.77,148.72,0.045733]
[1740797051992,0.04497462,148.74,148.72,5.426733]
[1740797052291,13.84,148.79,148.72,0.045733]
[1740797052592,13.84,148.79,148.75,5.3799]
[1740797052784,13.84,148.79,148.7,3.7605]
[1740797052984,215.26,148.82,148.7,3.7605]
[1740797053185,215.26,148.82,148.78,5.3788]
[1740797053387,0.05132833,148.81,148.79,0.04275577]
[1740797054086,0.05132833,148.81,148.79,5.42135577]
[1740797054288,0.05132833,148.81,148.79,0.04275577]
[1740797059297,0.05132833,148.81,148.79,5.42125577]
[1740797059893,0.05132833,148.81,148.79,0.04275577]
[1740797060099,0.05132833,148.81,148.8,5.3783]
[1740797060298,5.3772,148.84,148.8,5.3783]
[1740797060586,5.3766,148.85,148.8,5.3783]
[1740797061499,0.04448153,148.84,148.81,0.04316423]
[1740797062402,5.42138153,148.84,148.81,0.04316423]
[1740797062602,0.04448153,148.84,148.81,0.04316423]
[1740797063398,5.3773,148.83,148.81,0.04316423]
[1740797063602,0.04448153,148.84,148.81,0.04316423]
[1740797066402,5.42148153,148.84,148.81,0.04316423]
[1740797066603,0.04448153,148.84,148.81,0.04316423]
[1740797069002,5.3773,148.83,148.81,0.04316423]
[1740797069896,13.82,148.82,148.7,17.5805]
[1740797070302,17.4616,148.82,148.7,3.7605]
[1740797071010,0.0456355,148.77,148.75,0.04656388]
[1740797071308,13.82,148.82,148.75,0.04656388]
[1740797071608,13.82,148.82,148.76,5.3798]
[1740797072097,19.1978,148.82,148.75,5.42666388]
[1740797072497,0.04565743,148.8,148.75,5.42666388]
[1740797072897,0.04565743,148.8,148.76,5.3798]
[1740797073712,0.04565743,148.8,148.75,0.04656388]
[1740797074311,215.1,148.83,148.79,5.3785]
[1740797074512,215.1,148.83,148.75,7.30976388]
[1740797074814,5.3768,148.85,148.78,5.3788]
[1740797075015,13.82,148.86,148.75,7.2632]
[1740797075507,0.04841519,148.82,148.79,0.04426943]
[1740797077106,5.42611519,148.82,148.79,0.04426943]
[1740797077307,0.04841519,148.82,148.79,0.04426943]
[1740797079116,0.04841519,148.82,148.79,5.42266943]
[1740797079716,0.04841519,148.82,148.8,5.3783]
[1740797081012,0.04841519,148.82,148.79,0.04426943]
[1740797081219,0.04841519,148.82,148.79,5.42286943]
[1740797081414,0.04841519,148.82,148.79,0.04426943]
[1740797081921,0.04841519,148.82,148.8,5.3781]
[1740797082516,0.04841519,148.82,148.79,0.04426943]
[1740797083616,5.42621519,148.82,148.79,0.04426943]
[1740797084422,0.04841519,148.82,148.79,0.04426943]
[1740797084823,5.42611519,148.82,148.79,0.04426943]
[1740797085216,0.04841519,148.82,148.79,0.04426943]
[1740797086723,0.04841519,148.82,148.79,5.42296943]
[1740797087224,0.04841519,148.82,148.79,0.04426943]
[1740797088018,5.3783,148.8,148.79,0.04426943]
[1740797089016,0.04841519,148.82,148.72,7.2887]
[1740797089219,3.6857,148.81,148.72,7.2887]
[1740797089513,13.8,148.8,148.72,12.6698]
[1740797089923,5.3788,148.79,148.74,5.3803]
[1740797090223,0.04246402,148.78,148.75,0.04958229]
[1740797090925,0.04246402,148.78,148.75,5.42958229]
[1740797091125,0.04246402,148.78,148.75,0.04958229]
[1740797092616,5.377,148.84,148.79,5.3786]
[1740797092823,5.377,148.84,148.72,7.2887]
[1740797093020,5.377,148.84,148.78,5.379]
[1740797093328,5.3773,148.83,148.78,5.379]
[1740797093528,13.8,148.85,148.79,5.3786]
[1740797093832,0.04767054,148.82,148.79,0.04660118]
[1740797096335,5.42537054,148.82,148.79,0.04660118]
[1740797097534,0.04767054,148.82,148.79,0.04660118]
[1740797097933,13.8,148.81,148.79,0.04660118]
[1740797098435,5.3783,148.8,148.79,0.04660118]
[1740797099132,19.1781,148.81,148.79,0.04660118]
[1740797099337,13.8,148.81,148.79,0.04660118]
[1740797100538,19.178,148.81,148.79,0.04660118]
[1740797100735,13.8,148.81,148.79,0.04660118]
[1740797102040,5.3783,148.8,148.79,0.04660118]
[1740797103736,13.8,148.81,148.79,0.04660118]
[1740797104042,0.04767054,148.82,148.79,0.04660118]
[1740797108043,0.04767054,148.82,148.79,5.42530118]
[1740797108349,17.54337637,148.85,148.79,0.04660118]
[1740797109143,215.1,148.86,148.79,0.04660118]
[1740797109449,0.04698074,148.83,148.79,13.82660118]
[1740797109650,3.6648,148.9,148.8,3.8243]
[1740797109846,3.6648,148.9,148.8,7.4149]
[1740797110342,74.07755009,148.91,148.86,5.3758]
[1740797110547,74.07755009,148.91,148.8,7.4149]
[1740797110746,0.04766389,148.9,148.87,0.04786526]
[1740797110946,79.45215009,148.91,148.83,5.3771]
[1740797111150,0.04372109,148.9,148.87,0.04614198]
[1740797111648,5.3754,148.89,148.87,0.04614198]
[1740797111855,0.04372109,148.9,148.87,0.04614198]
[1740797114246,5.3754,148.88,148.87,0.04614198]
[1740797114540,7.46222109,148.9,148.8,3.8243]
[1740797114745,7.4185,148.9,148.8,3.8243]
[1740797115049,7.4185,148.9,148.8,9.2025]
[1740797115450,0.04876649,148.86,148.84,0.04862471]
[1740797121758,5.42516649,148.86,148.84,0.04862471]
[1740797122155,0.04876649,148.86,148.84,0.04862471]
[1740797122359,5.3765,148.85,148.84,0.04862471]
[1740797124156,234.26516649,148.86,148.84,0.04862471]
[1740797125263,5.3765,148.85,148.84,0.04862471]
[1740797125863,5.3779,148.82,148.76,3.525]
[1740797126253,228.84,148.86,148.76,3.525]
[1740797126459,5.3774,148.83,148.76,3.525]
[1740797126753,228.84,148.86,148.76,8.9046]
[1740797126954,0.04803745,148.81,148.78,0.04325902]
[1740797128461,5.3784,148.8,148.78,0.04325902]
[1740797129058,13.82803745,148.81,148.7,13.78]
[1740797129264,13.78,148.81,148.7,13.78]
[1740797129665,5.3786,148.8,148.7,13.78]
[1740797130062,13.78,148.81,148.74,5.3802]
[1740797130365,0.0516639,148.76,148.74,0.04977473]
[1740797130661,0.04727593,148.76,148.74,0.04977473]
[1740797130862,249.06,148.75,148.66,9.33037122]
[1740797131168,5.3834,148.66,148.65,27.97453885]
[1740797131355,19.1634,148.66,148.65,13.05583885]
[1740797132667,19.1634,148.66,148.65,3.885e-05]
[1740797132869,13.78,148.66,148.64,65.55884853]
[1740797133069,220.5638,148.65,148.64,48.30744853]
[1740797133269,220.5638,148.65,148.64,40.11474853]
[1740797133764,220.5638,148.65,148.64,0.04715746]
[1740797134668,223.9238,148.65,148.64,0.04715746]
[1740797135169,220.5638,148.65,148.64,5.746e-05]
[1740797135573,215.18,148.65,148.64,5.746e-05]
[1740797136064,238.72,148.65,148.64,5.746e-05]
[1740797136267,244.1038,148.65,148.64,5.746e-05]
[1740797138371,220.5638,148.65,148.64,5.746e-05]
[1740797139069,215.18,148.65,148.64,5.746e-05]
[1740797139272,228.96,148.65,148.64,5.746e-05]
[1740797140573,237.7038,148.65,148.64,5.746e-05]
[1740797142168,228.96,148.65,148.64,5.746e-05]
[1740797143265,215.18,148.65,148.64,5.746e-05]
[1740797143467,215.18,148.65,148.53,20.9929]
[1740797143876,215.18,148.65,148.57,5.3866]
[1740797144170,215.18,148.65,148.53,20.9929]
[1740797144373,215.18,148.65,148.47,10.7801]
[1740797144578,26.92,148.6,148.1,363.3300919]
[1740797144774,0.04505335,148.57,148.14,97.05453549]
[1740797144975,6.74,148.53,148.14,97.05453549]
[1740797145170,20.18,148.15,148.14,84.19253549]
[1740797145370,15.86,148.15,148.14,84.08493549]
[1740797145577,15.86,148.15,148.14,61.29593549]
[1740797145775,15.88,148.19,148.14,74.75593549]
[1740797145977,15.88,148.19,148.16,13.46]
[1740797146172,207.38144256,148.15,148.04,215.38]
[1740797146384,207.38144256,148.15,148.14,13.46]
[1740797146582,207.38144256,148.15,148.13,13.46]
[1740797146969,207.38144256,148.15,148.13,0.04717427]
[1740797147774,131.9700089,148.14,148.13,0.04717427]
[1740797148169,131.9700089,148.14,148.13,13.50717427]
[1740797149280,131.9700089,148.14,148.04,134.6111317]
[1740797149477,131.9700089,148.14,148.12,60.80589737]
[1740797149979,207.38144256,148.14,148.04,87.4138259]
[1740797150482,5.4045,148.08,147.96,11.2691]
[1740797150679,15.94,148.07,147.96,11.2691]
[1740797150883,0.05002745,148.03,148.01,0.04480098]
[1740797151885,120.4306089,148.02,148.01,3.42480098]
[1740797152087,120.4306089,148.02,147.96,5.4088]
[1740797152472,120.4306089,148.02,147.96,8.7888]
[1740797152679,120.4306089,148.02,147.96,5.4088]
[1740797153182,0.04679124,148.0,147.98,0.0489391]
[1740797153383,120.4306089,148.02,147.96,3.38]
[1740797153879,120.4306089,148.02,147.96,8.7888]
[1740797154383,0.04738895,148.0,147.98,5.4081]
[1740797154685,289.98776613,148.01,147.98,5.45204907]
[1740797154884,289.98776613,148.01,147.98,5.4081]
[1740797155186,191.24515508,148.01,147.99,5.4077]
[1740797155389,191.24515508,148.01,148.0,231.68]
[1740797155587,203.95604111,148.01,148.0,231.68]
[1740797155887,203.95604111,148.01,148.0,235.06]
[1740797156583,203.99910714,148.02,148.0,235.12]
[1740797156790,203.99910714,148.02,147.99,0.04825819]
[1740797156990,203.99910714,148.02,148.0,231.72]
[1740797157788,203.99910714,148.02,148.0,215.94]
[1740797158086,203.99910714,148.02,148.01,15.8]
[1740797158288,0.04306603,148.02,148.01,15.8]
[1740797159285,113.18467474,148.02,148.01,15.8]
[1740797159687,113.18467474,148.02,148.0,106.10869367]
[1740797160690,113.18467474,148.02,148.0,216.0]
[1740797161789,37.71386957,148.01,148.0,216.0]
[1740797161989,37.71386957,148.01,148.0,27.4559681]
[1740797162591,44.47386957,148.01,147.95,0.29717]
[1740797162791,176.22856048,148.01,147.95,0.29717]
[1740797162991,6.76,148.0,147.95,0.29717]
[1740797163495,176.22856048,148.01,147.95,0.29717]
[1740797163696,6.76,148.0,147.95,0.29717]